bitfinex/quotes_ETHUSD_20241104
["timestamp","ask_amount","ask_price","bid_price","bid_amount"]
[1730744569146,0.0598272,2434.1,2433.6,4.92646]
[1730744569471,0.0598272,2434.1,2433.8,4.10878]
[1730744569676,0.0598272,2434.1,2433.9,4.10853]
[1730744570385,0.0598272,2434.1,2434.0,4.19062489]
[1730744570685,0.0598272,2434.1,2434.0,0.08216489]
[1730744570892,0.0598272,2434.1,2434.0,4.91916]
[1730744571051,0.0598272,2434.1,2434.0,0.902767]
[1730744571252,0.0598272,2434.1,2433.8,3.0]
[1730744571556,0.0598272,2434.1,2433.8,7.10863]
[1730744571870,0.0598272,2434.1,2433.9,4.10853]
[1730744572049,0.0598272,2434.1,2434.0,4.91916]
[1730744572249,0.0598272,2434.1,2433.9,5.311376]
[1730744572473,0.0598272,2434.1,2433.8,4.10871]
[1730744572690,0.0598272,2434.1,2433.9,0.13331859]
[1730744572884,0.0598272,2434.1,2433.9,0.08216331]
[1730744573494,0.0598272,2434.1,2433.9,4.10855]
[1730744573687,0.0598272,2434.1,2433.7,3.8107]
[1730744573888,0.0598272,2434.1,2433.9,4.10859]
[1730744574268,0.0598272,2434.1,2434.0,0.08216072]
[1730744574591,0.0598272,2434.1,2433.9,4.10861]
[1730744574776,0.09682778,2434.1,2433.9,4.10861]
[1730744574967,0.09682778,2434.1,2434.0,4.19062067]
[1730744575170,0.09682778,2434.1,2434.0,5.02055274]
[1730744575355,0.09682778,2434.1,2434.0,8.73249207]
[1730744575693,0.0598272,2434.1,2434.0,9.41577705]
[1730744576401,0.0598272,2434.1,2434.0,8.86577705]
[1730744577305,0.0598272,2434.1,2434.0,9.41577705]
[1730744577501,0.0598272,2434.1,2434.0,8.86577705]
[1730744578484,0.0598272,2434.1,2434.0,9.41577705]
[1730744578687,0.0598272,2434.1,2434.0,9.28249207]
[1730744578903,0.0598272,2434.1,2434.0,9.62869137]
[1730744579998,0.0598272,2434.1,2434.0,9.63869137]
[1730744580780,0.0598272,2435.3,2434.0,9.63869137]
[1730744580781,0.0598272,2435.3,2434.5,0.7957]
[1730744580984,0.0598272,2435.3,2434.7,4.10711]
[1730744580985,4.10653,2435.2,2434.7,4.10711]
[1730744581200,4.10669,2435.1,2434.6,4.10744]
[1730744581503,4.10669,2435.1,2434.7,4.10725]
[1730744581800,4.1661572,2435.3,2434.8,4.18919375]
[1730744582005,4.10663,2435.1,2434.7,8.21445]
[1730744582196,4.10663,2435.1,2434.7,4.10721]
[1730744582708,4.1661572,2435.3,2434.7,8.2144]
[1730744582910,4.10651,2435.2,2434.8,0.08213369]
[1730744583212,4.10662,2435.1,2434.7,4.10725]
[1730744583385,4.10662,2435.1,2434.7,5.0983976]
[1730744584272,4.10662,2435.1,2434.7,4.10726]
[1730744584498,0.0598272,2435.3,2434.5,0.7957]
[1730744584708,4.10664,2435.1,2434.6,0.13310706]
[1730744584916,4.10703,2434.9,2434.6,3.0]
[1730744585077,4.10645,2435.2,2434.8,4.10703]
[1730744585278,0.0598272,2435.3,2434.9,4.10685]
[1730744585584,0.0598272,2435.3,2434.9,0.8089]
[1730744585900,0.0598272,2435.3,2434.9,4.91573]
[1730744586209,0.0598272,2435.3,2434.5,0.21308378]
[1730744586507,4.10652,2435.2,2434.8,4.1071]
[1730744586972,0.0598272,2435.3,2434.9,4.10687]
[1730744587315,4.10645,2435.2,2434.7,4.10728]
[1730744587605,4.10645,2435.2,2434.8,4.24025024]
[1730744587905,4.1661772,2435.3,2434.9,4.92344]
[1730744588109,0.0598272,2435.3,2435.2,4.10643]
[1730744588311,0.0598272,2435.3,2435.2,4.93593774]
[1730744588468,0.0598272,2435.3,2435.2,7.93593774]
[1730744590222,0.0598272,2435.3,2435.2,8.01805421]
[1730744590409,0.0598272,2435.3,2435.2,8.73983774]
[1730744590723,0.0598272,2435.3,2435.2,8.87300839]
[1730744590894,0.0598272,2435.3,2435.2,9.44300839]
[1730744591427,0.0598272,2435.3,2435.2,9.43300839]
[1730744591904,0.0598272,2435.3,2435.2,9.42300839]
[1730744592884,0.0598272,2435.3,2435.2,9.28983774]
[1730744593086,0.09626469,2435.3,2435.2,7.93593774]
[1730744594001,0.09626469,2435.3,2435.2,8.01805096]
[1730744594190,0.09626469,2435.3,2435.2,7.93593774]
[1730744594390,0.09626469,2435.3,2435.2,8.01805103]
[1730744594590,0.0598272,2435.3,2435.2,8.01805103]
[1730744595347,0.0598272,2435.3,2435.2,7.93593774]
[1730744595836,0.0598272,2435.3,2435.2,8.06909194]
[1730744595994,0.0598272,2435.3,2435.2,8.28214906]
[1730744598049,0.0598272,2435.3,2435.2,9.62184906]
[1730744598551,8.3882372,2436.5,2436.0,4.10497]
[1730744598860,8.3882372,2436.5,2436.0,8.20997]
[1730744598861,4.2838672,2436.5,2436.0,8.20997]
[1730744599002,8.3881972,2436.5,2436.0,8.20997]
[1730744599207,4.2838572,2436.5,2436.0,8.20997]
[1730744599659,0.0598272,2436.5,2436.1,0.87178929]
[1730744599879,0.0598272,2436.5,2436.3,4.10449]
[1730744600144,0.0598272,2436.5,2436.4,4.514859]
[1730744600374,0.0598272,2436.5,2436.4,8.98721045]
[1730744600641,0.0598272,2436.5,2436.4,8.64945341]
[1730744600854,4.22327,2436.9,2436.5,3.0]
[1730744601015,8.32693,2436.9,2436.6,0.13265145]
[1730744601345,8.32693,2436.9,2436.1,0.8271]
[1730744601346,4.10387,2436.8,2436.2,3.0]
[1730744601521,4.10387,2436.8,2436.4,4.1044]
[1730744601843,4.10401,2436.7,2436.2,7.10458]
[1730744602051,4.10411,2436.6,2436.1,4.10492]
[1730744602350,4.10374,2436.8,2436.2,4.1047]
[1730744602521,4.10398,2436.7,2436.2,4.1047]
[1730744602705,4.10415,2436.6,2436.1,4.10492]
[1730744602905,4.10415,2436.6,2436.2,4.1047]
[1730744603407,4.10382,2436.8,2436.3,4.10456]
[1730744603613,4.10382,2436.8,2436.3,8.20907]
[1730744603841,4.10419,2436.6,2435.8,0.8271]
[1730744604148,4.10417,2436.6,2436.1,4.10484]
[1730744604629,4.10384,2436.8,2436.3,4.10446]
[1730744604820,8.32706,2436.9,2436.4,4.10433]
[1730744605023,4.22338,2436.9,2436.4,4.10433]
[1730744605224,4.10337,2437.1,2436.4,1.886894]
[1730744605550,4.22279,2437.2,2436.7,4.1038]
[1730744605755,4.10284,2437.4,2436.9,4.10349]
[1730744605958,4.22236,2437.5,2436.9,4.10349]
[1730744605959,4.22236,2437.5,2437.0,4.1034]
[1730744606119,4.10278,2437.4,2436.8,4.10372]
[1730744606457,4.10299,2437.3,2436.8,5.301072]
[1730744606627,4.10278,2437.4,2436.6,4.87006]
[1730744606628,4.10331,2437.1,2436.6,4.87006]
[1730744606831,4.10331,2437.1,2436.6,3.766]
[1730744607059,4.1034,2437.0,2436.6,3.766]
[1730744607266,4.1034,2437.0,2436.6,3.0]
[1730744607551,4.10365,2436.9,2436.4,7.1044]
[1730744607852,4.10365,2436.9,2436.6,3.0]
[1730744608031,4.10325,2437.1,2436.6,3.0]
[1730744608227,4.10342,2437.0,2436.6,3.0]
[1730744608428,4.10342,2437.0,2436.6,7.10407]
[1730744608821,4.10366,2436.9,2436.5,3.0]
[1730744609153,4.10376,2436.8,2436.4,3.0]
[1730744609315,4.936298,2436.9,2436.4,4.10438]
[1730744609514,4.10362,2436.9,2436.5,0.13240879]
[1730744609753,0.1197,2437.0,2436.4,4.10438]
[1730744609754,0.1197,2437.0,2436.6,4.10399]
[1730744610062,8.20668,2437.1,2436.6,4.92609]
[1730744610356,4.10332,2437.1,2436.6,4.92609]
[1730744610957,4.10367,2436.9,2436.3,4.10456]
[1730744611120,3.70217186,2437.3,2436.4,0.13240885]
[1730744611121,3.58247186,2437.3,2436.4,0.13240885]
[1730744611318,0.1197,2437.4,2436.4,0.13240885]
[1730744611319,4.10332,2437.1,2436.6,4.10396]
[1730744611720,4.10343,2437.0,2436.6,4.10396]
[1730744611915,4.923971,2437.1,2436.7,0.13240894]
[1730744612152,0.820651,2437.1,2436.7,4.10379]
[1730744612357,4.10301,2437.3,2436.9,4.10356]
[1730744612584,4.10314,2437.2,2436.7,8.20759]
[1730744612789,4.10314,2437.2,2436.8,0.13244613]
[1730744612951,4.10301,2437.3,2436.7,4.10378]
[1730744613154,4.10278,2437.4,2437.0,4.10338]
[1730744613341,0.820547,2437.4,2436.5,0.8221]
[1730744613549,4.1029,2437.3,2436.8,4.10363]
[1730744613744,3.1029,2437.3,2436.9,4.23601303]
[1730744614075,4.10315,2437.2,2436.8,4.10363]
[1730744614278,4.10325,2437.1,2436.9,0.13252328]
[1730744614446,4.10325,2437.1,2436.5,4.9263]
[1730744614643,4.10325,2437.1,2436.6,3.34445938]
[1730744614848,4.1035,2437.0,2436.7,0.34445938]
[1730744615054,4.1035,2437.0,2436.8,0.1324734]
[1730744615287,4.525565,2437.1,2436.9,0.13258374]
[1730744615450,4.10389,2436.8,2436.4,0.21216632]
[1730744615647,4.1036,2436.9,2436.5,0.34477763]
[1730744615983,4.1036,2436.9,2436.6,0.13261131]
[1730744616214,8.20729,2436.9,2436.7,0.34499926]
[1730744616343,4.1036,2436.9,2436.8,0.13261131]
[1730744617444,4.9665305,2436.9,2436.8,0.13261131]
[1730744617647,5.0862305,2436.9,2436.8,0.13261131]
[1730744617943,0.9826305,2436.9,2436.3,3.0]
[1730744618140,4.10435,2436.5,2436.4,0.34548619]
[1730744618344,4.10409,2436.6,2436.4,0.34548619]
[1730744618544,4.10409,2436.6,2436.5,0.34548619]
[1730744619188,4.10409,2436.6,2436.5,0.34548679]
[1730744619189,4.924893,2436.6,2436.5,0.34548679]
[1730744619344,4.924893,2436.6,2436.5,0.1328679]
[1730744619541,5.044593,2436.6,2436.5,0.1328679]
[1730744620583,4.10394,2436.7,2436.5,0.34551079]
[1730744620878,4.10394,2436.7,2436.6,0.1328679]
[1730744621283,0.9826305,2436.9,2436.6,0.1328679]
[1730744621583,4.10386,2436.8,2436.7,0.13284399]
[1730744622079,4.10397,2436.7,2436.3,0.7725]
[1730744622245,4.10397,2436.7,2436.4,0.34548019]
[1730744622447,4.10397,2436.7,2436.5,0.13286559]
[1730744622649,4.10397,2436.7,2436.6,0.13286559]
[1730744623073,4.936723,2436.7,2436.6,0.13286559]
[1730744623399,4.10397,2436.7,2436.6,0.13286559]
[1730744623682,4.10381,2436.8,2436.6,0.13286559]
[1730744623934,4.10381,2436.8,2436.7,0.13286559]
[1730744624073,4.10381,2436.8,2436.3,4.10448]
[1730744624275,4.10398,2436.7,2436.4,0.34520518]
[1730744624517,4.10376,2436.8,2436.5,0.34520518]
[1730744624675,4.10392,2436.7,2436.6,0.13275983]
[1730744625204,0.1197,2436.9,2436.6,0.13275983]
[1730744625205,4.10374,2436.8,2436.6,0.13275983]
[1730744625515,8.2076,2436.8,2436.4,0.16907983]
[1730744625719,8.2076,2436.8,2436.5,0.34520932]
[1730744625875,0.1197,2436.9,2436.6,0.13276142]
[1730744625876,4.22329,2436.9,2436.6,0.13276142]
[1730744626077,4.10359,2436.9,2436.7,0.34540279]
[1730744626387,4.10359,2436.9,2436.8,0.13276142]
[1730744626711,4.10387,2436.8,2436.3,7.32606374]
[1730744626877,8.20772,2436.8,2436.4,0.51439379]
[1730744627073,8.20772,2436.8,2436.5,0.34540265]
[1730744627074,4.10395,2436.7,2436.5,0.34540265]
[1730744627274,4.10395,2436.7,2436.6,0.34540265]
[1730744627888,4.10366,2436.9,2436.6,0.34540265]
[1730744628125,4.10366,2436.9,2436.4,4.1043]
[1730744628126,4.10366,2436.9,2436.7,0.13283577]
[1730744628420,4.10366,2436.9,2436.8,0.13283577]
[1730744628627,4.936352,2436.9,2436.8,0.13283577]
[1730744629216,5.056052,2436.9,2436.8,0.13283577]
[1730744629877,5.056052,2436.9,2436.3,4.10456]
[1730744630218,4.10386,2436.8,2436.4,0.34861223]
[1730744630519,4.10386,2436.8,2436.5,0.34861223]
[1730744630674,4.10386,2436.8,2436.6,0.34861223]
[1730744630875,4.10386,2436.8,2436.7,0.34861223]
[1730744632007,8.20727,2436.9,2436.7,0.34861223]
[1730744632207,4.1035,2437.0,2436.8,0.34858587]
[1730744632407,4.1035,2437.0,2436.9,0.13406751]
[1730744632814,4.1035,2437.0,2436.6,0.16969953]
[1730744632815,4.10376,2436.8,2436.6,0.16969953]
[1730744633017,4.10376,2436.8,2436.4,4.10439]
[1730744633018,4.1033,2437.1,2436.7,5.38442382]
[1730744633242,4.10307,2437.2,2436.7,5.38442382]
[1730744633243,4.10307,2437.2,2436.8,0.60058966]
[1730744633406,4.10307,2437.2,2436.8,4.10373]
[1730744633611,4.65156992,2437.4,2436.9,0.21465865]
[1730744633848,4.10291,2437.3,2437.0,0.13415732]
[1730744634009,4.10291,2437.3,2437.1,0.13415732]
[1730744634213,4.10291,2437.3,2436.9,4.27330371]
[1730744634405,4.10291,2437.3,2437.0,0.13414845]
[1730744634644,4.10291,2437.3,2437.1,0.13414845]
[1730744634854,4.10291,2437.3,2436.9,4.27330371]
[1730744635008,4.10291,2437.3,2437.0,0.13417029]
[1730744635212,0.87542399,2437.3,2437.1,0.13417029]
[1730744635409,0.54874992,2437.4,2436.9,0.16984371]
[1730744635625,4.10324,2437.1,2437.0,0.13416862]
[1730744636149,4.10324,2437.1,2436.7,0.7621]
[1730744636445,4.22327,2436.9,2436.8,0.3041103]
[1730744636866,4.22327,2436.9,2436.8,0.30413495]
[1730744637146,4.22327,2436.9,2436.8,0.13419762]
[1730744638411,4.10374,2436.8,2436.4,4.92303]
[1730744638653,4.10374,2436.8,2436.5,0.34902286]
[1730744638871,4.10374,2436.8,2436.6,0.13422817]
[1730744639153,4.10374,2436.8,2436.7,0.13422817]
[1730744641445,0.542044,2436.8,2436.4,0.8187]
[1730744641749,0.542044,2436.8,2436.1,0.27199475]
[1730744641750,0.1197,2436.8,2436.3,4.10445]
[1730744641923,0.1197,2436.8,2436.4,0.13423366]
[1730744641924,4.10393,2436.7,2436.4,0.13423366]
[1730744642128,4.22359,2436.8,2436.5,0.13423366]
[1730744642380,4.22325,2437.0,2436.4,4.10437]
[1730744642661,4.22325,2437.0,2436.5,4.2383789]
[1730744642662,4.10367,2436.9,2436.5,4.2383789]
[1730744642887,4.10367,2436.9,2436.6,0.1342089]
[1730744643147,4.10331,2437.1,2436.6,4.10399]
[1730744643456,4.10331,2437.1,2436.7,4.23801994]
[1730744643753,4.10331,2437.1,2436.7,4.10383]
[1730744644251,6.67803435,2437.4,2436.9,4.10348]
[1730744644460,4.10293,2437.3,2436.9,4.10348]
[1730744645248,4.10325,2437.1,2436.8,0.8093]
[1730744645456,4.1031,2437.2,2436.8,4.91301]
[1730744645816,4.1031,2437.2,2436.8,0.8093]
[1730744645817,8.2063,2437.2,2436.8,0.8093]
[1730744646129,4.10333,2437.1,2436.8,0.8093]
[1730744646378,4.10308,2437.2,2436.8,4.91303]
[1730744647218,4.22261,2437.3,2436.9,0.13417553]
[1730744647219,2.15234557,2437.3,2436.9,0.13417553]
[1730744647418,4.53188992,2437.4,2437.0,0.9102477]
[1730744647618,4.10293,2437.3,2437.0,0.7761]
[1730744647855,4.53188992,2437.4,2437.1,0.1341487]
[1730744648154,4.53188992,2437.4,2437.0,0.7761]
[1730744648358,4.53188992,2437.4,2437.0,4.87949]
[1730744649348,4.53186992,2437.4,2437.0,4.87949]
[1730744650319,4.10298,2437.3,2437.0,0.7761]
[1730744650521,0.42904992,2437.4,2437.2,4.10299]
[1730744650822,0.42904992,2437.4,2437.3,0.89190212]
[1730744651023,4.1621572,2437.7,2437.3,0.7578]
[1730744651223,0.0598272,2437.7,2437.4,4.10265]
[1730744651531,0.0598272,2437.7,2437.4,4.588765]
[1730744651734,4.1621572,2437.7,2437.3,4.86062]
[1730744652117,4.1024,2437.6,2437.3,0.7578]
[1730744652323,4.1621572,2437.7,2437.3,4.86069]
[1730744652755,4.1621572,2437.7,2437.3,0.7578]
[1730744652960,4.10247,2437.6,2437.3,0.7578]
[1730744653454,4.10258,2437.5,2437.3,0.7578]
[1730744653619,8.20499,2437.6,2437.3,0.7578]
[1730744653825,0.1197,2437.6,2437.0,1.00153019]
[1730744654155,4.10283,2437.4,2437.1,0.13398868]
[1730744654333,4.10257,2437.5,2437.0,4.8904]
[1730744654654,4.1028,2437.4,2437.1,0.13398031]
[1730744654859,4.10287,2437.4,2437.0,0.7871]
[1730744655022,4.10314,2437.2,2436.5,4.59010069]
[1730744655356,4.10283,2437.4,2437.0,0.8011]
[1730744655545,4.10297,2437.3,2437.0,0.8011]
[1730744655743,4.10276,2437.4,2437.0,0.8011]
[1730744655920,4.1029,2437.3,2437.0,0.8011]
[1730744656119,4.10256,2437.5,2437.0,5.805243]
[1730744656335,4.10242,2437.6,2437.2,4.10298]
[1730744656519,0.0598272,2437.7,2437.5,0.8011]
[1730744657745,0.0598272,2437.7,2437.3,0.8011]
[1730744658067,4.1620572,2437.7,2437.3,0.8011]
[1730744658543,4.10239,2437.6,2437.3,0.8011]
[1730744659546,4.10266,2437.5,2437.3,0.8011]
[1730744660062,4.10266,2437.5,2437.1,4.9362]
[1730744660240,4.10239,2437.6,2437.1,6.2302503]
[1730744660435,0.1795272,2437.7,2437.1,2.1270503]
[1730744660636,4.10268,2437.5,2437.1,0.833]
[1730744660953,4.10287,2437.4,2437.1,0.833]
[1730744661479,4.10283,2437.4,2436.9,4.89408]
[1730744661682,4.10283,2437.4,2437.0,0.13403683]
[1730744661844,4.10283,2437.4,2436.9,4.89408]
[1730744662043,4.10283,2437.4,2436.9,5.793851]
[1730744662469,4.10329,2437.1,2436.5,0.7815]
[1730744662667,4.10323,2437.1,2436.6,0.1340927]
[1730744662870,0.1197,2437.2,2436.7,0.1340927]
[1730744663070,4.10353,2437.0,2436.5,4.96774409]
[1730744663255,4.10353,2437.0,2436.6,1.08233699]
[1730744663460,4.10353,2437.0,2436.7,0.13408488]
[1730744663660,4.10353,2437.0,2436.6,0.94825211]
[1730744663661,4.10359,2436.9,2436.6,0.94825211]
[1730744663980,4.10353,2437.0,2436.6,0.94825211]
[1730744663981,4.10353,2437.0,2436.7,0.13408877]
[1730744664185,4.10324,2437.1,2436.7,5.14075961]
[1730744664335,4.10324,2437.1,2436.8,0.7815]
[1730744664537,4.10308,2437.2,2436.8,4.88523]
[1730744664850,8.20628,2437.2,2436.8,0.7815]
[1730744665049,4.10308,2437.2,2436.8,0.7815]
[1730744665265,2.14978992,2437.5,2437.1,4.10315]
[1730744665449,4.10263,2437.5,2437.1,4.18520491]
[1730744665771,4.10263,2437.5,2437.1,4.10315]
[1730744666066,4.10263,2437.5,2436.9,4.90863]
[1730744666266,4.10263,2437.5,2437.1,4.10316]
[1730744667078,4.10263,2437.5,2437.0,0.5911251]
[1730744667079,4.1028,2437.4,2437.0,0.5911251]
[1730744667235,4.1028,2437.4,2437.0,4.6944551]
[1730744668175,4.10263,2437.5,2437.1,4.10323]
[1730744668379,4.10263,2437.5,2437.0,4.6944551]
[1730744669032,4.10274,2437.4,2437.0,4.6944151]
[1730744669236,4.10263,2437.5,2437.0,8.7976951]
[1730744669439,4.10276,2437.4,2437.0,4.6944051]
[1730744669746,4.10276,2437.4,2437.0,8.7977351]
[1730744669954,4.10276,2437.4,2437.0,0.5911251]
[1730744670155,4.10276,2437.4,2437.0,4.6944651]
[1730744670976,4.10293,2437.3,2437.0,0.5911251]
[1730744671172,4.10294,2437.3,2436.9,0.8051]
[1730744671382,4.10323,2437.1,2436.7,4.87109]
[1730744671582,4.10323,2437.1,2436.8,0.1341417]
[1730744671871,4.10323,2437.1,2436.7,4.87109]
[1730744672185,8.20658,2437.1,2436.8,0.13414756]
[1730744672474,4.10352,2437.0,2436.7,0.7673]
[1730744672668,8.20706,2437.0,2436.8,0.13418424]
[1730744672854,8.20706,2437.0,2436.6,4.10405]
[1730744673067,4.10352,2437.0,2436.7,0.13420156]
[1730744673381,4.10352,2437.0,2436.8,0.13421411]
[1730744673689,4.10352,2437.0,2436.6,4.10405]
[1730744674038,2.2802998,2437.3,2436.7,0.13422261]
[1730744674266,2.2802998,2437.3,2436.5,0.7649]
[1730744674267,4.22343,2436.9,2436.5,0.7649]
[1730744674437,4.22343,2436.9,2436.6,0.13422441]
[1730744674640,4.10334,2437.1,2436.7,0.13421613]
[1730744674641,4.10343,2437.0,2436.7,0.13421613]
[1730744674885,4.10343,2437.0,2436.6,4.10407]
[1730744675051,4.10343,2437.0,2436.7,0.13422612]
[1730744675246,4.10343,2437.0,2436.6,4.10407]
[1730744675451,4.10364,2436.9,2436.5,4.86911]
[1730744675680,4.10364,2436.9,2436.6,0.13421826]
[1730744675886,4.10364,2436.9,2436.5,4.86483353]
[1730744676043,4.10364,2436.9,2436.6,0.13421527]
[1730744676385,4.10343,2437.0,2436.5,4.86483353]
[1730744676599,8.20695,2437.0,2436.6,0.13419614]
[1730744676765,8.20695,2437.0,2436.5,4.86483353]
[1730744676963,4.10358,2436.9,2436.6,0.13419589]
[1730744677220,4.10358,2436.9,2436.4,4.10427]
[1730744677221,0.534258,2436.9,2436.4,4.10427]
[1730744677511,4.637898,2436.9,2436.5,4.10423]
[1730744677871,4.637898,2436.9,2436.4,4.10427]
[1730744678210,4.637858,2436.9,2436.4,4.10427]
[1730744678411,4.637858,2436.9,2436.5,4.10423]
[1730744678572,2.1514577,2437.0,2436.6,0.7858]
[1730744678907,6.2548177,2437.1,2436.7,4.1038]
[1730744679077,4.10336,2437.1,2436.7,4.1038]
[1730744679277,6.3784477,2437.2,2436.8,4.10372]
[1730744679471,6.37837455,2437.2,2436.7,4.1038]
[1730744679682,0.1239,2436.9,2436.3,4.10443]
[1730744679891,4.10375,2436.8,2436.4,4.23846855]
[1730744680101,4.10375,2436.8,2436.4,4.10435]
[1730744680797,4.104,2436.7,2436.2,4.10463]
[1730744681109,4.10424,2436.5,2436.3,0.13411718]
[1730744681410,4.10425,2436.5,2436.1,1.00041204]
[1730744681582,4.10421,2436.6,2436.1,0.7858]
[1730744681583,4.10409,2436.6,2436.1,0.7858]
[1730744681908,4.10428,2436.5,2436.1,4.89058]
[1730744682572,4.10409,2436.6,2436.2,4.10468]
[1730744682978,4.10426,2436.5,2436.1,4.89058]
[1730744683291,4.10426,2436.5,2436.1,0.7858]
[1730744683608,4.10409,2436.6,2436.2,4.1047]
[1730744683818,8.20832,2436.6,2436.1,4.89056]
[1730744684004,8.2083,2436.6,2436.1,4.89056]
[1730744684202,4.10409,2436.6,2436.1,4.89056]
[1730744684423,4.10424,2436.5,2436.1,4.89056]
[1730744684720,4.10424,2436.5,2436.1,8.99537]
[1730744684891,4.10424,2436.5,2436.1,4.89056]
[1730744685530,4.10411,2436.6,2436.2,4.10471]
[1730744686323,4.52671,2436.7,2436.2,4.10466]
[1730744686631,4.10409,2436.6,2436.2,4.10466]
[1730744687522,4.10409,2436.6,2436.1,4.89068]
[1730744687523,4.10427,2436.5,2436.1,4.89068]
[1730744687738,4.10427,2436.5,2436.1,0.7858]
[1730744688024,4.10467,2436.3,2436.1,0.7858]
[1730744688223,4.9673,2436.6,2436.0,4.10495]
[1730744688385,4.10448,2436.4,2436.0,4.10495]
[1730744689037,4.10426,2436.5,2436.1,4.89133]
[1730744689747,4.10448,2436.4,2436.1,0.7865]
[1730744690342,4.10448,2436.4,2436.0,4.10498]
[1730744690506,4.10461,2436.3,2435.9,4.88472]
[1730744690832,4.10479,2436.2,2435.6,3.7809]
[1730744691039,4.10499,2436.1,2435.7,4.23964004]
[1730744691235,4.10499,2436.1,2435.7,4.10557]
[1730744692351,4.10499,2436.1,2435.7,4.10553]
[1730744692651,4.938358,2436.1,2435.7,4.10553]
[1730744693257,4.10516,2436.0,2435.5,4.1058]
[1730744693410,4.10516,2436.0,2435.6,0.13403061]
[1730744693615,4.10543,2435.8,2435.4,12.01436]
[1730744693930,8.33451,2435.9,2435.5,0.13402682]
[1730744694127,4.22916,2435.9,2435.6,0.13400659]
[1730744694331,9.377557,2435.9,2435.6,0.13400659]
[1730744694526,4.10554,2435.8,2435.4,4.90843]
[1730744694815,4.10561,2435.7,2435.5,0.13400311]
[1730744695016,4.10561,2435.7,2435.4,0.13400182]
[1730744695281,4.10561,2435.7,2435.0,4.99851021]
[1730744695282,0.1239,2435.6,2435.3,4.10625]
[1730744695615,4.10563,2435.7,2435.3,4.10625]
[1730744695818,5.40168789,2435.7,2435.3,4.10625]
[1730744696051,4.1059,2435.6,2435.1,4.10651]
[1730744696251,4.1059,2435.6,2435.1,8.213]
[1730744696465,4.10594,2435.5,2435.1,4.10649]
[1730744696754,4.23,2435.4,2435.0,4.87605]
[1730744696911,0.1239,2435.4,2435.0,0.7693]
[1730744697116,3.58247186,2435.2,2434.9,0.1339917]
[1730744697348,0.1239,2434.9,2434.5,0.7653]
[1730744697550,0.1239,2434.9,2434.5,4.24155963]
[1730744697749,0.1239,2434.9,2434.5,4.10756]
[1730744697750,4.23084,2434.9,2434.5,4.10756]
[1730744698113,0.1239,2434.9,2434.3,4.93423]
[1730744698377,4.10735,2434.7,2434.3,0.8263]
[1730744698531,4.10747,2434.6,2434.2,4.10802]
[1730744698925,0.1239,2434.4,2434.0,4.10832]
[1730744699176,0.1239,2434.4,2433.9,4.10854]
[1730744699177,4.23178,2434.4,2433.9,4.10854]
[1730744699402,4.23171,2434.4,2434.0,4.10838]
[1730744699901,4.23171,2434.4,2433.8,4.93495]
[1730744699902,8.33961,2434.4,2433.9,4.10863]
[1730744700110,4.23171,2434.4,2433.9,4.10863]
[1730744700331,4.8353352,2434.4,2433.9,4.10863]
[1730744700471,0.1239,2434.4,2434.1,4.10829]
[1730744700666,0.1239,2434.4,2434.0,3.0]
[1730744701008,8.33967,2434.4,2433.8,4.93507]
[1730744701170,4.23176,2434.4,2433.9,7.24255127]
[1730744701363,8.3397,2434.4,2433.9,7.1086]
[1730744702064,4.23176,2434.4,2433.9,7.1086]
[1730744702289,4.23176,2434.4,2434.0,4.10845]
[1730744703423,0.1239,2434.7,2434.2,4.10801]
[1730744703606,4.23128,2434.7,2434.2,4.93341]
[1730744703811,8.33869,2434.7,2434.2,4.93341]
[1730744704124,4.1075,2434.6,2434.2,4.10801]
[1730744704291,5.42339619,2434.7,2434.0,4.93376]
[1730744704495,4.10773,2434.5,2434.0,4.93376]
[1730744704692,4.10745,2434.6,2434.0,4.93374]
[1730744705110,9.53081619,2434.7,2434.2,4.10806]
[1730744705484,4.23129,2434.7,2434.3,4.10791]
[1730744705791,0.1239,2434.7,2434.4,4.10764]
[1730744705995,0.1239,2434.9,2434.4,4.10764]
[1730744706323,4.23086,2434.9,2434.5,4.10752]
[1730744706576,4.10714,2434.8,2434.4,0.8276]
[1730744706687,4.1073,2434.7,2434.3,4.10795]
[1730744707520,4.1073,2434.7,2434.2,7.9357]
[1730744707691,4.10754,2434.6,2434.2,3.8276]
[1730744709994,4.10754,2434.6,2434.2,4.93572]
[1730744710297,4.10766,2434.5,2434.1,3.0]
[1730744710624,0.1239,2434.4,2434.0,9.04273]
[1730744710789,0.1239,2434.6,2434.0,0.826]
[1730744710989,4.23138,2434.6,2434.2,4.10805]
[1730744711990,0.1239,2434.6,2434.2,8.2161]
[1730744712194,4.10764,2434.5,2434.0,4.10832]
[1730744712388,4.10764,2434.5,2434.0,4.87142]
[1730744712689,4.10764,2434.5,2434.1,0.13348455]
[1730744712892,4.10781,2434.4,2434.1,0.13348987]
[1730744713091,4.23154,2434.5,2434.1,4.24177156]
[1730744713336,4.23154,2434.5,2434.1,4.10827]
[1730744714253,4.23154,2434.5,2434.0,0.7631]
[1730744714449,4.10787,2434.4,2434.0,3.7631]
[1730744715197,4.10821,2434.2,2433.8,8.14491251]
[1730744715397,4.10821,2434.2,2433.9,0.13362123]
[1730744715596,4.10821,2434.2,2433.8,7.93115]
[1730744716055,4.10802,2434.3,2433.9,4.10862]
[1730744716491,4.10802,2434.3,2434.0,0.13371933]
[1730744716696,4.10802,2434.3,2433.9,8.21715]
[1730744716911,4.23164,2434.5,2434.0,4.24210486]
[1730744717193,3.52694487,2437.1,2433.9,5.312485]
[1730744717194,0.1239,2435.0,2434.2,4.10809]
[1730744717393,4.10701,2434.9,2434.5,4.10753]
[1730744717558,4.23069,2435.0,2434.6,4.10735]
[1730744717972,8.3376,2435.0,2434.5,4.1076]
[1730744718320,4.10702,2434.9,2434.5,4.1076]
[1730744718461,8.33756,2435.0,2434.5,4.1076]
[1730744718796,4.10694,2434.9,2434.5,4.10761]